Cogmind - Beta 17 @@@ ROGUE MODE // 2026.07.23 @ 15:58:56 Player: V1-Dll Result: Destroyed by S-10 Pest with Light Assault Rifle Performance ------------- Evolutions (0) 0 Regions Visited (2) 400 Robots Destroyed (22) 110 Value Destroyed (596) 596 Prototype IDs (5) 100 Alien Tech Used (0) 0 Bonus (0) 0 TOTAL SCORE: 1206 Bonus ------- None Cogmind --------- Core Integrity 0/250 Matter 290/300 Energy 200/200 System Corruption 1% Temperature Cool (0) Movement Rolling (160) Ox5 Location -10/Subcaves Parts ------- > --- POWER (1) -------- Subdweller Power Source > --- PROPULSION (2) --- Subdweller Monowheel Subdweller Monowheel > --- UTILITY (2) ------ Humpback > --- WEAPON (2) ------- Subdweller Machine Gun Barrage Gun > --- INVENTORY (35) --- Light Treads Light Treads Spiked Treads Subdweller Monowheel Medium Storage Unit Weight Redist. System Seismic Detector Propulsion Shielding Spread Laser Subdweller Laser Subdweller Laser Subdweller Beam Cannon Scrap Shield Fragment (45) Scrap Shield Fragment (36) Peak State ------------ > --- POWER ------------ Subdweller Power Source > --- PROPULSION ------- Spiked Treads Subdweller Monowheel > --- UTILITY ---------- Humpback > --- WEAPON ----------- Subdweller Machine Gun Barrage Gun > --- INVENTORY -------- Light Treads Light Treads Subdweller Monowheel Subdweller Monowheel Medium Storage Unit Weight Redist. System Seismic Detector Propulsion Shielding Spread Laser Subdweller Laser Subdweller Beam Cannon Scrap Shield Fragment Scrap Shield Fragment [Rating: 15] Favorites ----------- Power Light Ion Engine Engine Light Ion Engine Power Core Light Nuclear Core Propulsion Light Treads Treads Light Treads Wheel Subdweller Monowheel Utility Small Storage Unit Device Heat Sink Storage Small Storage Unit Weapon Spread Laser Energy Gun Spread Laser Ballistic Gun Assault Rifle Build | -11 -10 -10 ------- Run | Yrd Mat Sub Slots Evolved . | . . . Power . | . . . Propulsion . | . . . Utility . | . . . Weapon . | . . . Parts Attached 23 | 6 5 12 Power 3 | 1 . 2 Engine 2 | 1 . 1 Core 1 | . . 1 Reactor . | . . . Propulsion 6 | 2 . 4 Treads 3 | 2 . 1 Leg . | . . . Wheel 3 | . . 3 Hover . | . . . Flight . | . . . Utility 5 | 1 2 2 Device 2 | . 2 . Storage 3 | 1 . 2 Processor . | . . . Hackware . | . . . Protection . | . . . Artifact . | . . . Weapon 9 | 2 3 4 Energy Gun 6 | 1 3 2 Energy Cannon . | . . . Ballistic Gun 3 | 1 . 2 Ballistic Cannon . | . . . Launcher . | . . . Special Weapon . | . . . Impact Weapon . | . . . Slashing Weapon . | . . . Piercing Weapon . | . . . Special Melee Weapon . | . . . Unidentified Prototypes . | . . . Parts Lost 8 | . . 8 Power 2 | . . 2 Propulsion 1 | . . 1 Utility 1 | . . 1 Weapon 4 | . . 4 Highest Loss Streak 4 | . . 4 To Critical Strikes . | . . . Average Backups 8 | 1 7 9 Power . | . 1 . Propulsion 2 | 1 2 2 Utility 3 | . 2 3 Weapon 1 | . 1 2 Tool/Special . | . . . Unused Backups 13 | . 4 9 Power 1 | . 1 . Propulsion 4 | . 1 3 Utility 4 | . 2 2 Weapon 4 | . . 4 Tool/Special . | . . . Average Slot Usage (%) 94 | . 99 90 Engine 11 | . 14 9 Treads 23 | . 28 20 Wheel 4 | . . 7 Device 11 | . 13 9 Storage 14 | . 14 14 Energy Gun 25 | . 25 25 Ballistic Gun 1 | . 1 1 Peak Build Rating 15 | 6 10 15 Average Rating 9 | 4 9 10 On Entrance 5 | . 6 10 Avg Prop Armor Cover (%) . | . . . Naked Turns . | . . . Heaviest Build 212 | 11 15 212 Greatest Support 40 | 40 40 40 Greatest Overweight (x) 20 | . . 20 Average Overweight (x) . | . . 1 Largest Inventory Capacity 35 | 8 8 35 Average Capacity 12 | 7 8 16 Most Carried 18 | 3 8 18 Average Carried 8 | 1 7 10 Final Capacity 35 | 8 8 35 Final Carried 14 | 3 8 14 Class Distribution -------------------- 83% | Mutant 16% | Hauler-Mutant Dominant Class ---------------- Mutant | -10/Materials Mutant | -10/Subcaves Resources | -11 -10 -10 ----------- Run | Yrd Mat Sub Matter Collected 478 | 260 50 168 Remotely . | . . . Salvage Created 573 | . 360 213 Parts 38 | . 26 12 Haulers Intercepted 2 | . 2 . Recyclers Shooed . | . . . Parts Field Recycled . | . . . Retrieved Matter . | . . . Parts Self-Destructed 14 | . . 14 Prevented . | . . . Parts Restored . | . . . Kills | -11 -10 -10 ------- Run | Yrd Mat Sub Combat Hostiles Destroyed 17 | . 10 7 Guns 17 | . 10 7 Classes Destroyed 5 | . 4 1 Hauler 2 | . 2 . Watcher 3 | . 3 . Swarmer 4 | . 3 1 Grunt 7 | . 7 . Subdweller 6 | . . 6 Best Kill Streak 6 | . 6 2 Combat Bots Only 6 | . 6 2 Max Kills in Single Turn 1 | . 1 1 Gunslinging . | . . . Exploded . | . . . Melee . | . . . Uniques/NPCs Destroyed . | . . . Combat | -11 -10 -10 -------- Run | Yrd Mat Sub Hostile Shots Fired 107 | . 52 55 Missed 31 | . 19 12 Hits 76 | . 33 43 Projectile 76 | . 33 43 Critical Strikes 1 | . . 1 Damage Taken 1301 | . 368 933 Core 254 | . 100 154 Absorbed by Shields . | . . . Core Remaining (%) 100 | 100 . . Volleys Fired 55 | . 28 27 Largest 2 | . 2 2 Hottest 130 | . 130 130 Shots Fired 103 | . 56 47 Gun 103 | . 56 47 Cannon . | . . . Launcher . | . . . Special . | . . . Kinetic 16 | . . 16 Thermal 87 | . 56 31 Explosive . | . . . Electromagnetic . | . . . Robot Hit Streak 15 | . 7 15 Robot Miss Streak 8 | . 8 3 Penetration Max . | . . . Secondary Targets 5 | . 4 1 Max Gunslinging Chain 1 | . 1 1 Shots Hit Robots 88 | . 51 37 Core Hits 97 | . 65 32 Critical Kills . | . . . Critical Parts Destroyed . | . . . Critical Strikes 1 | . . 1 Destroy 1 | . . 1 Melee Attacks . | . . . Impact . | . . . Slashing . | . . . Piercing . | . . . Sneak Attacks . | . . . Combat Hostiles . | . . . Follow-up Attacks . | . . . Damage Inflicted 1212 | . 579 633 Guns 1212 | . 579 633 Cannons . | . . . Explosions . | . . . Melee . | . . . Ramming . | . . . Kinetic 184 | . . 184 Thermal 1028 | . 579 449 Explosive . | . . . Electromagnetic . | . . . Impact . | . . . Slashing . | . . . Piercing . | . . . Highest Corruption 1 | . 1 1 Average Corruption 1 | . 1 1 Corruption Purged . | . . . Corruption Blocked . | . . . Effects 16 | . 7 9 Message Errors 6 | . 2 4 Matter Fused 1 | . . 1 Heat Flow Errors 2 | . . 2 Energy Discharges 3 | . 3 . Parts Fused 1 | . 1 . Data Loss (minor) 2 | . . 2 Data Loss (major) 1 | . 1 . Overload Shots . | . . . Overflow Damage . | . . . Projectiles . | . . . Explosions . | . . . Melee . | . . . Knockbacks . | . . . Impact . | . . . Kinetic . | . . . Secondary . | . . . Self-Inflicted Damage . | . . . Shots . | . . . Rammed . | . . . Targets Rammed . | . . . Kicked . | . . . Crushed . | . . . Highest Temperature 306 | . 306 224 Average Temperature 107 | . 110 76 Received Heat Transfer 282 | . 147 135 Effects 2 | . 2 . Energy Bleed 2 | . 2 . Siege Activations . | . . . Martial Activations . | . . . Shielding Activations . | . . . Robots Disrupted . | . . . Combat Hostiles . | . . . Robots Corrupted . | . . . Combat Hostiles . | . . . Parts Fried . | . . . Impact Corruptions . | . . . Robots Melted . | . . . Combat Hostiles . | . . . Parts Melted . | . . . Heat Transferred 1295 | . 740 555 Parts Sabotaged . | . . . Parts Stolen . | . . . Parts Stripped . | . . . Power Chain Reactions . | . . . Alert | -11 -10 -10 ------- Run | Yrd Mat Sub Maximum Alert Level . | . . . Low Security (%) 100 | 100 100 . Level 1 . | . . . Level 2 . | . . . Level 3 . | . . . Level 4 . | . . . Level 5 . | . . . High Security . | . . . Max Security . | . . . Peak Influence 150 | . 150 . Initial . | . . . Average 42 | . 45 . Influence Increases 356 | . 306 50 Destroy 0b10 Robot/C 220 | . 200 20 Destroy 0b10 Robot/NC 25 | . 25 . Destroy Leader 60 | . 60 . Successful Hack 21 | . 21 . Lose Combat Pursuer 30 | . . 30 Influence Decreases 306 | . 306 . Time Decay 306 | . 306 . Squads Dispatched 2 | . 2 . Investigation . | . . . Extermination . | . . . Reinforcement 2 | . 2 . Assault . | . . . Garrison . | . . . Intercept . | . . . Searches Triggered . | . . . Construction Impeded . | . . . Haulers Reinforced . | . . . Active Scanning Responses . | . . . Cargo Convoy Interrupts . | . . . Stealth | -11 -10 -10 --------- Run | Yrd Mat Sub Distress Signals 1 | . 1 . Communications Jammed . | . . . Distress Signals . | . . . Times Spotted 23 | . 15 8 Peak Tracking Total 4 | . 4 2 Tactical Retreats 2 | . . 2 Traps | -11 -10 -10 ------- Run | Yrd Mat Sub Traps Triggered 3 | . 1 2 Indirectly . | . . . Trap Hack Attempts . | . . . Triggered . | . . . Disarmed . | . . . Reprogrammed . | . . . Reused . | . . . Traps Extracted . | . . . Installed . | . . . Triggered . | . . . Machines | -11 -10 -10 ---------- Run | Yrd Mat Sub Machines Disabled . | . . . Max in Single Turn . | . . . Machines Repaired . | . . . Machines Dismantled . | . . . Machines Sabotaged . | . . . Overloaded Fab Kills . | . . . Hacking | -11 -10 -10 --------- Run | Yrd Mat Sub Machines Accessed 6 | . 6 . Terminals 6 | . 6 . Fabricators . | . . . Repair Stations . | . . . Recycling Units . | . . . Scanalyzers . | . . . Garrison Access . | . . . Total Hacks 13 | . 13 . Successful 8 | . 8 . Failed 5 | . 5 . Catastrophic . | . . . Database Lockouts . | . . . Manual . | . . . Terminals 13 | . 13 . Fabricators . | . . . Repair Stations . | . . . Recycling Units . | . . . Scanalyzers . | . . . Garrison Access . | . . . Terminal Hacks 8 | . 8 . Prototype ID Bank 3 | . 3 . Branch Access Points 1 | . 1 . Emergency Access Points 1 | . 1 . Terminal Index 1 | . 1 . Alert Level 1 | . 1 . Zone Layout 1 | . 1 . Fabricator Hacks . | . . . Repair Station Hacks . | . . . Recycling Unit Hacks . | . . . Scanalyzer . | . . . Garrison Access Hacks . | . . . Unauthorized Hacks . | . . . Terminals . | . . . Fabricators . | . . . Repair Stations . | . . . Recycling Units . | . . . Scanalyzers . | . . . Garrison Access . | . . . Data Cores Recovered . | . . . Used . | . . . Hacking Detections 6 | . 6 . Full Trace Events . | . . . Feedback Events . | . . . Feedback Blocked . | . . . Robot Schematics Acquired . | . . . Robots Built . | . . . Authchips . | . . . Time . | . . . Total Robot Build Rating . | . . . Part Schematics Acquired . | . . . Parts Built . | . . . Authchips . | . . . Time . | . . . Total Part Build Rating . | . . . Part Studies Acquired . | . . . Parts Repaired . | . . . Time . | . . . Parts Recycled . | . . . Recycled Matter . | . . . Retrieved Matter . | . . . Retrieved Components . | . . . Parts Scanalyzed . | . . . Part Schematics Acquired . | . . . Parts Damaged . | . . . Bothacking | -11 -10 -10 ------------ Run | Yrd Mat Sub Used RIF Installer . | . . . Robots Hacked . | . . . Non-combat . | . . . Combat . | . . . Robot Hacks Applied . | . . . Relay Couplers Released . | . . . Fabnet Peak Effective % . | . . . Robots Rewired . | . . . Allies Hacked . | . . . Hacks Repelled . | . . . Allies | -11 -10 -10 -------- Run | Yrd Mat Sub Total Allies . | . . . Largest Group . | . . . Highest-Rated Group . | . . . Highest-Rated Ally . | . . . Total Orders . | . . . Ally Attacks . | . . . Total Damage . | . . . Kills . | . . . Allies Corrupted . | . . . Allies Melted . | . . . Intel | -11 -10 -10 ------- Run | Yrd Mat Sub Active Infowar (turns) 188 | . 188 . Seismic 188 | . 188 . Robot Analysis Total . | . . . Derelict Logs Recovered 2 | . . 2 Drone Launches . | . . . Drone Recoveries . | . . . Exploration | -11 -10 -10 ------------- Run | Yrd Mat Sub Turns Passed 2590 | 81 1130 1379 Spaces Moved 1314 | 51 509 754 Core 10 | 10 . . Treads 1124 | 41 509 574 Legs . | . . . Wheels 180 | . . 180 Hover . | . . . Flight . | . . . Fastest Speed 50 | 50 160 160 Average Speed 161 | 138 160 163 Slowest Speed 380 | 160 160 380 Overloaded Moves . | . . . Propulsion Burnouts . | . . . Robots Hopped . | . . . Potential Cave-ins . | . . . Cave-ins Triggered . | . . . Exploration Rate (%) 46 | 4 90 44 Regions Visited 2 Branch Regions 1 Pre-discovered Areas 2 | . . 2 Known Exits Taken . | . . . Unknown Exits Taken 2 | 1 1 . Scrap Searched 4 | . . 4 Spaces Dug . | . . . Terrain Destroyed . | . . . Melee . | . . . Projectile . | . . . AOE . | . . . Terrain Rammed . | . . . Walls Destroyed . | . . . Machines Disabled . | . . . Actions | -11 -10 -10 --------- Run | Yrd Mat Sub Total 1685 | 59 771 855 Wait 245 | . 213 32 Move 1312 | 50 508 754 Hop . | . . . Pick Up 32 | 3 9 20 Fast Attach 11 | 6 4 1 Attach 9 | . 1 8 Detach 2 | . 1 1 Swap 4 | . . 4 Drop 15 | . 7 8 Fire 55 | . 28 27 Melee . | . . . Ram . | . . . Kick . | . . . Crush . | . . . Escape Stasis . | . . . Rewire . | . . . Trap . | . . . Miscellaneous . | . . . Route ------- -11/Scrapyard -10/Materials (discovered 5 exits: [*Mat x2] / *Min x2 / [*Sub]) -10/Subcaves History --------- Turn | Location | Event 4 | -11/Scrapyard | Discovered new exit (range 15) 82 | -11/Scrapyard | Entered Materials 338 | -10/Materials | Build established: Mutant 510 | -10/Materials | Discovered new exit (range 9) 724 | -10/Materials | Discovered new exit (range 13) 849 | -10/Materials | Discovered new exit (range 11) 959 | -10/Materials | Discovered new exit (range 14) 996 | -10/Materials | Identified exit to Mines 1200 | -10/Materials | Discovered new exit (range 8) 1212 | -10/Materials | Entered Subcaves 1285 | -10/Subcaves | Learned location of Zion (-7) 1285 | -10/Subcaves | Met a Zionite searching for "candidates" 1459 | -10/Subcaves | Learned 2 Materials zone layouts 1613 | -10/Subcaves | Shifting Twisted Machinery released Battle Rifle 1643 | -10/Subcaves | Shifting Twisted Machinery released Flamer 2004 | -10/Subcaves | Core integrity fell below 50% 2172 | -10/Subcaves | Disturbed a concealed Subdweller 2477 | -10/Subcaves | Build established: Hauler-Mutant 2494 | -10/Subcaves | Core integrity fell below 20% 2534 | -10/Subcaves | Lost 4 parts (1n3w) 2591 | -10/Subcaves | Destroyed by S-10 Pest with Light Assault Rifle Last Messages --------------- 02448_ Acquired derelict log, extracted data. World map confirmed: -7/Zion. 02495_ Spread Laser destroyed. 02495_ Wheel destroyed. 02501_ Riot Gun destroyed. 02502_ Identified Sub. Power Source. 02503_ Sub. Laser destroyed. 02507_ 3O-UOM(R) destroyed. 02507_ Switching to secondary target: QQ-PZW(R). 02510_ QQ-PZW(R) affixes Scrap Shield Fragment to Scrap Shield. 02520_ QQ-PZW(R) suffers critical hit (Destroy). 02526_ QQ-PZW(R) destroyed. 02531_ Acquired 24 matter. 02532_ Acquired 43 matter. 02535_ Acquired Sub. Laser. 02551_ XBNGT3PQDZ,CL7 /DMXFVL0VSX 02565_ Acquired 13 matter. 02578_ S-10 Pest destroyed. 02583_ Acquired 8 matter. Map ----- +----------------------------------------------------+ | ##?? ##?# #????# #?????????????????? | | " ### ### ##???## #?????????????????? | | #??## ##??# #?????????????????? | | #????## #### #?????????????????? | | # " ##?#### # # #?????????????????? | | #" " ###?## #?????????????????? | | ##" ###### ##????????????????? | | ?### ## ## #!&#????????????????? | | ??# ## ###########????????????? | | #### ##?? #????????????? | | # # ##? #????????????? | | ##### ## ## #?????????????? | | #???# ## #### #?????????????? | | #???# &! ####### ## #??????????? | | ##???# %! ### #??????????? | | #???# ### ## #?????????? | | ????### #?## % ##?? #????????? | | ??????#### ?## ###????### #????????? | | ?????????## %## ####??????? #????????? | | ??????????## ## % #?????????????????? | | ???????????? ##### #?????????????????? | | ???????????? ###???# ## #?????????????????? | | ???????????? #??????# #?####?????????????????? | | ??????????? ##??????### ##?????????????????????? | | ?????????? #????????## ###???????????????????? | | ??????????## ##????????# @ #???????????????????? | | ???????????##??????????# #???????????????????? | | ???????????????????????#s ##???????????????????? | | ?????????????????????? s %#????????????????????? | | ???????????????????? % ????????????????????? | | ??????????????????" % ???????????????????? | | ????????????????#" %## ??????????????????? | | ????????????????#" ?# #### ?????????????????? | | ????????????????#""" "?# ???# ????????????????? | | ????????????????#######? ???? ????????????????? | | ???????????????????????? ????? ???????????????? | | ???????????????????????? ?????? ??????????????? | | ???????????????????????? ?????????????????????? | | ???????????????????????? # ????????????????????? | | ???????????????????????##?# ????????????????????? | | ??????????????????????????? ?????????????????????? | | ???????????????????????????#?????????????????????? | | ?????????????????????????????????????????????????? | | ?????????????????????????????????????????????????? | | ?????????????????????????????????????????????????? | | ?????????????????????????????????????????????????? | | ?????????????????????????????????????????????????? | | ?????????????????????????????????????????????????? | | ?????????????????????????????????????????????????? | | ?????????????????????????????????????????????????? | +----------------------------------------------------+ Best States ------------- Heat Dissipation 35 Energy Generation 15 Energy Capacity 200 Matter Stores 300 Matter Capacity 300 Sight Range 16 Terrain Scan Density 10 Evasion (%) 40 Recoil Reduction 2 Item Schematics ----------------- None Robot Schematics ------------------ None Fabricated ------------ Nothing Repaired ---------- Nothing Studied --------- None Alien Tech Used ----------------- None Achievements -------------- None Challenges ------------ None Game ------ Seed NuclearNeutrinoCloak Manual? 0 Play Time 00:17:37 Cumulative 338.0 hours Start 2026.07.23 @ 15:41:38 End 2026.07.23 @ 15:58:56 Sessions 1 Manual Loads 0 Difficulty Rogue Special Mode None Game No. 192 Rogue 118 Adventurer 74 Explorer 0 Win Type - Total 17 Types 14/0/0/3/0/0/0/0/0/0 Lore% 72 Gallery% 66 Achievement% 50 Wizard Run 0 Options --------- Layout 2 ASCII 0 Keyboard 0 Movement Mouse Keybinds 0 Fullscreen 1 Font 32/SmallcapsGlow Map View 50x44 Zoom Use 0% Tactical HUD 1 Map Filters NONE Filters NONE Steam 1 RUN: 30ce7e29-d5e0-4dc2-961c-b65388e0bb6d